[Event "Late-Titled-Tuesday-Blitz-February-20-2024"]
[Site "Chess.com"]
[Date "2024.02.20"]
[Round "4"]
[White "Grischuk"]
[Black "IlyaGrigorjev"]
[Result "1-0"]
[WhiteElo "3079"]
[BlackElo "2898"]
[TimeControl "180+1"]
[EndTime "14:39:38 PST"]
[Termination "Grischuk won by resignation"]

1. d4 {[%clk 0:03:00.9]} 1... Nf6 {[%clk 0:02:59.9]} 2. c4 {[%clk 0:03:00.9]}
2... g6 {[%clk 0:03:00.6]} 3. g3 {[%clk 0:02:58.8]} 3... Bg7 {[%clk 0:03:00.1]}
4. Bg2 {[%clk 0:02:59.3]} 4... d5 {[%clk 0:03:00.6]} 5. Nf3 {[%clk 0:02:53.2]}
5... O-O {[%clk 0:03:00.6]} 6. O-O {[%clk 0:02:53.2]} 6... Nc6 {[%clk
0:03:01.2]} 7. Na3 {[%clk 0:02:21.1]} 7... dxc4 {[%clk 0:02:49.4]} 8. Nxc4
{[%clk 0:02:22]} 8... Be6 {[%clk 0:02:41.1]} 9. b3 {[%clk 0:02:21.8]} 9... Bd5
{[%clk 0:02:41.2]} 10. Bb2 {[%clk 0:02:20.6]} 10... a5 {[%clk 0:02:35.5]} 11.
Rc1 {[%clk 0:01:50]} 11... Re8 {[%clk 0:02:22.6]} 12. e3 {[%clk 0:01:48]} 12...
h6 {[%clk 0:02:14.2]} 13. a3 {[%clk 0:01:39.8]} 13... Ne4 {[%clk 0:01:56.5]} 14.
Qe2 {[%clk 0:01:39.3]} 14... e6 {[%clk 0:01:42.3]} 15. Rfd1 {[%clk 0:01:35.7]}
15... Qe7 {[%clk 0:01:34.1]} 16. Nfd2 {[%clk 0:01:27.3]} 16... Nxd2 {[%clk
0:01:29.8]} 17. Nxd2 {[%clk 0:01:28.2]} 17... Bxg2 {[%clk 0:01:27.6]} 18. Kxg2
{[%clk 0:01:29.1]} 18... Rad8 {[%clk 0:01:27.1]} 19. Qb5 {[%clk 0:01:25.1]}
19... Rb8 {[%clk 0:01:11]} 20. Nc4 {[%clk 0:01:21.6]} 20... Qg5 {[%clk
0:01:02.7]} 21. Qxg5 {[%clk 0:01:12.9]} 21... hxg5 {[%clk 0:01:03.6]} 22. h3
{[%clk 0:01:12.9]} 22... Bf8 {[%clk 0:01:01.1]} 23. Nd2 {[%clk 0:00:55.6]} 23...
Rbd8 {[%clk 0:00:51.4]} 24. a4 {[%clk 0:00:49.6]} 24... Rd7 {[%clk 0:00:42.6]}
25. Bc3 {[%clk 0:00:45.7]} 25... f6 {[%clk 0:00:33.1]} 26. Nc4 {[%clk
0:00:35.3]} 26... b6 {[%clk 0:00:30.3]} 27. Rd2 {[%clk 0:00:25.9]} 27... Bb4
{[%clk 0:00:26.6]} 28. Rdc2 {[%clk 0:00:20.1]} 28... Bxc3 {[%clk 0:00:26.9]} 29.
Rxc3 {[%clk 0:00:21]} 29... Nb4 {[%clk 0:00:27.8]} 30. Nb2 {[%clk 0:00:15]}
30... Ree7 {[%clk 0:00:25.8]} 31. Rc4 {[%clk 0:00:06.6]} 31... Na2 {[%clk
0:00:21.7]} 32. Rd1 {[%clk 0:00:05.2]} 32... Nb4 {[%clk 0:00:20.1]} 33. Nd3
{[%clk 0:00:05.4]} 33... Nxd3 {[%clk 0:00:20.2]} 34. Rxd3 {[%clk 0:00:06.3]}
34... e5 {[%clk 0:00:15.7]} 35. d5 {[%clk 0:00:04.2]} 35... e4 {[%clk
0:00:16.1]} 36. Rdd4 {[%clk 0:00:03.3]} 36... f5 {[%clk 0:00:15.5]} 37. Rc6
{[%clk 0:00:03.3]} 37... Kf7 {[%clk 0:00:12.2]} 38. g4 {[%clk 0:00:03.4]} 38...
Re5 {[%clk 0:00:10.7]} 39. Rdc4 {[%clk 0:00:03.3]} 39... Rexd5 {[%clk
0:00:10.5]} 40. Rxc7 {[%clk 0:00:03.8]} 40... Rd6 {[%clk 0:00:06.1]} 41. Rxd7+
{[%clk 0:00:03.7]} 41... Rxd7 {[%clk 0:00:07]} 42. Rc6 {[%clk 0:00:04]} 42...
Rb7 {[%clk 0:00:06.1]} 43. Kg3 {[%clk 0:00:04]} 43... Kg7 {[%clk 0:00:04.1]} 44.
h4 {[%clk 0:00:03.8]} 44... gxh4+ {[%clk 0:00:03.4]} 45. Kxh4 {[%clk 0:00:04.7]}
45... fxg4 {[%clk 0:00:03.7]} 46. Kxg4 {[%clk 0:00:04.9]} 46... Rf7 {[%clk
0:00:04]} 47. Kg3 {[%clk 0:00:05.2]} 47... Rf3+ {[%clk 0:00:03.3]} 48. Kg2
{[%clk 0:00:05.6]} 48... Rf6 {[%clk 0:00:04]} 49. Rc7+ {[%clk 0:00:05.7]} 49...
Kh6 {[%clk 0:00:03.8]} 50. Re7 {[%clk 0:00:05.9]} 50... Rc6 {[%clk 0:00:02.6]}
51. Rxe4 {[%clk 0:00:06.1]} 51... Rc3 {[%clk 0:00:03.2]} 52. b4 {[%clk
0:00:06.7]} 52... Ra3 {[%clk 0:00:02]} 53. b5 {[%clk 0:00:06.2]} 53... Kg5
{[%clk 0:00:01.3]} 54. Kg3 {[%clk 0:00:05.8]} 54... Kf5 {[%clk 0:00:01.9]} 55.
Rd4 {[%clk 0:00:05.3]} 55... Ra1 {[%clk 0:00:01.7]} 56. f4 {[%clk 0:00:04.6]}
56... Rg1+ {[%clk 0:00:01.5]} 57. Kf2 {[%clk 0:00:04.5]} 57... Rf1+ {[%clk
0:00:02.3]} 58. Kxf1 {[%clk 0:00:04.6]} 1-0

[Event "Late-Titled-Tuesday-Blitz-February-20-2024"]
[Site "Chess.com"]
[Date "2024.02.20"]
[Round "4"]
[White "sakkikuska"]
[Black "chegueps"]
[Result "0-1"]
[WhiteElo "2514"]
[BlackElo "2667"]
[TimeControl "180+1"]
[EndTime "14:39:39 PST"]
[Termination "chegueps won by checkmate"]

1. e4 {[%clk 0:03:00.9]} 1... c6 {[%clk 0:02:59.7]} 2. d4 {[%clk 0:03:00.8]}
2... d5 {[%clk 0:03:00.6]} 3. Nc3 {[%clk 0:03:01.2]} 3... dxe4 {[%clk 0:03:01]}
4. Nxe4 {[%clk 0:03:02.1]} 4... Nf6 {[%clk 0:03:01.7]} 5. Nxf6+ {[%clk
0:03:02.7]} 5... exf6 {[%clk 0:03:02.6]} 6. c3 {[%clk 0:03:03.1]} 6... Bd6
{[%clk 0:03:03]} 7. Bd3 {[%clk 0:03:03.5]} 7... O-O {[%clk 0:02:59.1]} 8. Ne2
{[%clk 0:03:04]} 8... Re8 {[%clk 0:02:59.2]} 9. O-O {[%clk 0:03:04.1]} 9... Nd7
{[%clk 0:02:49.9]} 10. Bf4 {[%clk 0:03:04.3]} 10... Nf8 {[%clk 0:02:46.2]} 11.
Bxd6 {[%clk 0:03:03]} 11... Qxd6 {[%clk 0:02:47.1]} 12. Ng3 {[%clk 0:02:59.1]}
12... g6 {[%clk 0:02:47.3]} 13. Ne4 {[%clk 0:02:56.1]} 13... Qd8 {[%clk
0:02:44.7]} 14. Re1 {[%clk 0:02:55.1]} 14... Ne6 {[%clk 0:02:42.4]} 15. Bc4
{[%clk 0:02:43.6]} 15... Kg7 {[%clk 0:02:34.3]} 16. Bxe6 {[%clk 0:02:43]} 16...
Bxe6 {[%clk 0:02:35.2]} 17. Nc5 {[%clk 0:02:34.1]} 17... b6 {[%clk 0:02:33.3]}
18. Nxe6+ {[%clk 0:02:33]} 18... Rxe6 {[%clk 0:02:34.2]} 19. Qf3 {[%clk
0:02:26.2]} 19... Qd7 {[%clk 0:02:28.5]} 20. Rad1 {[%clk 0:02:11.6]} 20... Rae8
{[%clk 0:02:28]} 21. Rxe6 {[%clk 0:02:09.9]} 21... fxe6 {[%clk 0:02:25.7]} 22.
b3 {[%clk 0:02:02.7]} 22... Qd5 {[%clk 0:02:23.5]} 23. Qxd5 {[%clk 0:02:01.7]}
23... cxd5 {[%clk 0:02:20.6]} 24. Kf1 {[%clk 0:01:58.9]} 24... Rc8 {[%clk
0:02:17.7]} 25. Rc1 {[%clk 0:01:58.1]} 25... b5 {[%clk 0:02:13.1]} 26. Ke2
{[%clk 0:01:55.8]} 26... Kf7 {[%clk 0:02:10.1]} 27. f4 {[%clk 0:01:49.3]} 27...
h6 {[%clk 0:02:08.7]} 28. a3 {[%clk 0:01:40.6]} 28... g5 {[%clk 0:02:08.2]} 29.
g3 {[%clk 0:01:40]} 29... Kg6 {[%clk 0:01:55.5]} 30. Kf3 {[%clk 0:01:36]} 30...
a5 {[%clk 0:01:50.9]} 31. b4 {[%clk 0:01:17.3]} 31... axb4 {[%clk 0:01:38.6]}
32. axb4 {[%clk 0:01:18.2]} 32... Ra8 {[%clk 0:01:39.1]} 33. Re1 {[%clk
0:01:16.3]} 33... Kf7 {[%clk 0:01:36.5]} 34. fxg5 {[%clk 0:01:14.7]} 34... hxg5
{[%clk 0:01:36.3]} 35. h4 {[%clk 0:01:14.8]} 35... Ra3 {[%clk 0:01:31.8]} 36.
Re3 {[%clk 0:01:14.4]} 36... gxh4 {[%clk 0:01:28.7]} 37. gxh4 {[%clk 0:01:14.5]}
37... Ra1 {[%clk 0:01:27.3]} 38. Kg4 {[%clk 0:01:11.8]} 38... Rg1+ {[%clk
0:00:27.3]} 39. Kf4 {[%clk 0:01:06.9]} 39... Rh1 {[%clk 0:00:26.8]} 40. Kg4
{[%clk 0:01:06.8]} 40... Rc1 {[%clk 0:00:14.2]} 41. Kf4 {[%clk 0:01:02.1]} 41...
Rf1+ {[%clk 0:00:09.1]} 42. Kg4 {[%clk 0:01:02.1]} 42... f5+ {[%clk 0:00:07.3]}
43. Kg5 {[%clk 0:00:53.9]} 43... Rg1+ {[%clk 0:00:07.2]} 44. Kf4 {[%clk
0:00:50]} 44... Rg4+ {[%clk 0:00:06.3]} 45. Kf3 {[%clk 0:00:43.9]} 45... Rxh4
{[%clk 0:00:06.1]} 46. Kg3 {[%clk 0:00:44.5]} 46... Rg4+ {[%clk 0:00:06.4]} 47.
Kf3 {[%clk 0:00:44.6]} 47... Kf6 {[%clk 0:00:07]} 48. Re1 {[%clk 0:00:41.6]}
48... Rh4 {[%clk 0:00:07.5]} 49. Kg3 {[%clk 0:00:40.3]} 49... Re4 {[%clk
0:00:07.9]} 50. Rh1 {[%clk 0:00:39.3]} 50... Re3+ {[%clk 0:00:08.3]} 51. Kf4
{[%clk 0:00:39.6]} 51... Rxc3 {[%clk 0:00:07.6]} 52. Rh6+ {[%clk 0:00:40.1]}
52... Ke7 {[%clk 0:00:08.1]} 53. Rh7+ {[%clk 0:00:40.4]} 53... Kd6 {[%clk
0:00:08.2]} 54. Rb7 {[%clk 0:00:41]} 54... Rc4 {[%clk 0:00:06]} 55. Rxb5 {[%clk
0:00:41.6]} 55... Rxd4+ {[%clk 0:00:06.1]} 56. Ke3 {[%clk 0:00:42.4]} 56... Re4+
{[%clk 0:00:06.6]} 57. Kd3 {[%clk 0:00:42.4]} 57... Ke5 {[%clk 0:00:07.2]} 58.
Rb6 {[%clk 0:00:43.1]} 58... f4 {[%clk 0:00:07.6]} 59. Rb8 {[%clk 0:00:42.4]}
59... f3 {[%clk 0:00:07.5]} 60. Rf8 {[%clk 0:00:42.9]} 60... Rxb4 {[%clk
0:00:06.2]} 61. Ke3 {[%clk 0:00:43]} 61... Rb3+ {[%clk 0:00:06]} 62. Kf2 {[%clk
0:00:43.3]} 62... Ke4 {[%clk 0:00:05.5]} 63. Re8 {[%clk 0:00:43.2]} 63... e5
{[%clk 0:00:05.9]} 64. Ra8 {[%clk 0:00:43.7]} 64... d4 {[%clk 0:00:06.1]} 65.
Rh8 {[%clk 0:00:43.7]} 65... Rb2+ {[%clk 0:00:06.3]} 66. Kg3 {[%clk 0:00:43.5]}
66... Rg2+ {[%clk 0:00:04.6]} 67. Kh3 {[%clk 0:00:43.7]} 67... Ke3 {[%clk
0:00:04.8]} 68. Rf8 {[%clk 0:00:44]} 68... e4 {[%clk 0:00:04.6]} 69. Ra8 {[%clk
0:00:43.4]} 69... d3 {[%clk 0:00:04.5]} 70. Ra1 {[%clk 0:00:44.3]} 70... Rg8
{[%clk 0:00:04.4]} 71. Re1+ {[%clk 0:00:44.9]} 71... Kd4 {[%clk 0:00:04.8]} 72.
Ra1 {[%clk 0:00:45.4]} 72... d2 {[%clk 0:00:05.1]} 73. Ra4+ {[%clk 0:00:46.3]}
73... Ke3 {[%clk 0:00:05.5]} 74. Ra3+ {[%clk 0:00:46.2]} 74... Ke2 {[%clk
0:00:06.1]} 75. Ra4 {[%clk 0:00:47.1]} 75... e3 {[%clk 0:00:05.9]} 76. Ra1
{[%clk 0:00:47]} 76... f2 {[%clk 0:00:05.8]} 77. Ra2 {[%clk 0:00:47.9]} 77...
f1=Q+ {[%clk 0:00:06]} 78. Kh4 {[%clk 0:00:48.2]} 78... Qh1# {[%clk 0:00:05.5]}
0-1

[Event "Late-Titled-Tuesday-Blitz-February-20-2024"]
[Site "Chess.com"]
[Date "2024.02.20"]
[Round "4"]
[White "komogro"]
[Black "Chessdude1987"]
[Result "0-1"]
[WhiteElo "2492"]
[BlackElo "2366"]
[TimeControl "180+1"]
[EndTime "14:39:39 PST"]
[Termination "Chessdude1987 won on time"]

1. Nf3 {[%clk 0:02:59.7]} 1... e6 {[%clk 0:02:59]} 2. d4 {[%clk 0:02:59.7]} 2...
f5 {[%clk 0:02:59.3]} 3. c4 {[%clk 0:02:58.3]} 3... Nf6 {[%clk 0:02:59.7]} 4.
Nc3 {[%clk 0:02:58.4]} 4... Bb4 {[%clk 0:03:00]} 5. Qc2 {[%clk 0:02:57.7]} 5...
c5 {[%clk 0:02:58.8]} 6. Bd2 {[%clk 0:02:56]} 6... cxd4 {[%clk 0:02:57.7]} 7.
Nxd4 {[%clk 0:02:56.3]} 7... Nc6 {[%clk 0:02:57.8]} 8. Nb3 {[%clk 0:02:54.2]}
8... Be7 {[%clk 0:02:54.7]} 9. g3 {[%clk 0:02:54.2]} 9... O-O {[%clk 0:02:54]}
10. Bg2 {[%clk 0:02:54.3]} 10... b6 {[%clk 0:02:54.5]} 11. O-O {[%clk
0:02:53.6]} 11... Bb7 {[%clk 0:02:54.5]} 12. Rfd1 {[%clk 0:02:52.4]} 12... Nb4
{[%clk 0:02:52]} 13. Qb1 {[%clk 0:02:50.3]} 13... Bxg2 {[%clk 0:02:51.3]} 14.
Kxg2 {[%clk 0:02:51.2]} 14... Qc8 {[%clk 0:02:43.4]} 15. Bg5 {[%clk 0:02:15.5]}
15... Qxc4 {[%clk 0:02:37.7]} 16. Kg1 {[%clk 0:02:10.8]} 16... d5 {[%clk
0:02:28.5]} 17. Nd4 {[%clk 0:02:04]} 17... Qc8 {[%clk 0:02:21.1]} 18. a3 {[%clk
0:02:01]} 18... Nc6 {[%clk 0:02:18.8]} 19. Ncb5 {[%clk 0:02:01.3]} 19... Nxd4
{[%clk 0:02:15.6]} 20. Nxd4 {[%clk 0:02:01.4]} 20... Qd7 {[%clk 0:02:10.8]} 21.
Bxf6 {[%clk 0:01:55.1]} 21... Bxf6 {[%clk 0:02:10.6]} 22. Qd3 {[%clk 0:01:55]}
22... Rac8 {[%clk 0:02:05.4]} 23. Rac1 {[%clk 0:01:55.2]} 23... g6 {[%clk
0:01:58.3]} 24. e3 {[%clk 0:01:55.1]} 24... Rc5 {[%clk 0:01:54.6]} 25. b4 {[%clk
0:01:53.6]} 25... Rxc1 {[%clk 0:01:52.2]} 26. Rxc1 {[%clk 0:01:54.5]} 26... Rc8
{[%clk 0:01:51.9]} 27. Rxc8+ {[%clk 0:01:29.7]} 27... Qxc8 {[%clk 0:01:51.9]}
28. Qb5 {[%clk 0:01:29]} 28... Bxd4 {[%clk 0:01:42.3]} 29. exd4 {[%clk
0:01:29.1]} 29... Kf7 {[%clk 0:01:41.2]} 30. h4 {[%clk 0:01:28.7]} 30... Ke7
{[%clk 0:01:28.9]} 31. Qe2 {[%clk 0:01:27.6]} 31... Qc4 {[%clk 0:01:28.1]} 32.
Qe5 {[%clk 0:01:25.2]} 32... Kf7 {[%clk 0:01:10.6]} 33. Kg2 {[%clk 0:01:13]}
33... a5 {[%clk 0:01:07.3]} 34. bxa5 {[%clk 0:01:11.3]} 34... bxa5 {[%clk
0:01:07.4]} 35. Qh8 {[%clk 0:01:10.3]} 35... h5 {[%clk 0:00:58.7]} 36. Qh7+
{[%clk 0:00:58.2]} 36... Kf6 {[%clk 0:00:54.9]} 37. Qh6 {[%clk 0:00:45.2]} 37...
Kf7 {[%clk 0:00:52.4]} 38. Qh7+ {[%clk 0:00:43.5]} 38... Kf6 {[%clk 0:00:52.2]}
39. Qg8 {[%clk 0:00:41.2]} 39... Ke7 {[%clk 0:00:45.2]} 40. Qxg6 {[%clk
0:00:39.8]} 40... Qxd4 {[%clk 0:00:43]} 41. Qxh5 {[%clk 0:00:39.9]} 41... Qe4+
{[%clk 0:00:36.7]} 42. Kg1 {[%clk 0:00:37.2]} 42... Qe1+ {[%clk 0:00:34.5]} 43.
Kg2 {[%clk 0:00:37.8]} 43... Qe4+ {[%clk 0:00:32.6]} 44. Kh2 {[%clk 0:00:38.2]}
44... d4 {[%clk 0:00:28]} 45. Qh7+ {[%clk 0:00:31.4]} 45... Kd6 {[%clk
0:00:27.3]} 46. Qa7 {[%clk 0:00:25.7]} 46... d3 {[%clk 0:00:25.7]} 47. Qb6+
{[%clk 0:00:22.6]} 47... Ke7 {[%clk 0:00:23.1]} 48. h5 {[%clk 0:00:13]} 48...
Qe2 {[%clk 0:00:18.5]} 49. Qc7+ {[%clk 0:00:08.9]} 49... Kf6 {[%clk 0:00:17.1]}
50. Qd8+ {[%clk 0:00:08.3]} 50... Ke5 {[%clk 0:00:14.4]} 51. Qh8+ {[%clk
0:00:06.4]} 51... Ke4 {[%clk 0:00:13.6]} 52. h6 {[%clk 0:00:01.6]} 52... Qxf2+
{[%clk 0:00:13.3]} 53. Kh3 {[%clk 0:00:01.6]} 53... Qa2 {[%clk 0:00:11.8]} 54.
h7 {[%clk 0:00:01.5]} 54... d2 {[%clk 0:00:11.6]} 55. Qd8 {[%clk 0:00:01.2]}
55... Qb2 {[%clk 0:00:06.5]} 0-1

[Event "Late-Titled-Tuesday-Blitz-February-20-2024"]
[Site "Chess.com"]
[Date "2024.02.20"]
[Round "4"]
[White "cthake"]
[Black "Viktor_Poddubnyi"]
[Result "1-0"]
[WhiteElo "1803"]
[BlackElo "2272"]
[TimeControl "180+1"]
[EndTime "14:39:40 PST"]
[Termination "cthake won on time"]

1. b3 {[%clk 0:03:00.9]} 1... Nf6 {[%clk 0:02:59]} 2. Bb2 {[%clk 0:03:00.9]}
2... e6 {[%clk 0:02:59]} 3. e3 {[%clk 0:02:59.4]} 3... Be7 {[%clk 0:02:59.3]} 4.
f4 {[%clk 0:02:59.4]} 4... O-O {[%clk 0:02:59.2]} 5. Nf3 {[%clk 0:02:59.6]} 5...
c5 {[%clk 0:02:59.6]} 6. Be2 {[%clk 0:02:57]} 6... Nc6 {[%clk 0:02:59]} 7. O-O
{[%clk 0:02:56.8]} 7... d6 {[%clk 0:02:59.1]} 8. d3 {[%clk 0:02:44.5]} 8... a6
{[%clk 0:02:59.1]} 9. e4 {[%clk 0:02:44]} 9... b5 {[%clk 0:02:57.8]} 10. Nbd2
{[%clk 0:02:43.7]} 10... Nd7 {[%clk 0:02:56.6]} 11. Qe1 {[%clk 0:02:42.6]} 11...
Bf6 {[%clk 0:02:52]} 12. Bxf6 {[%clk 0:02:25.7]} 12... Qxf6 {[%clk 0:02:50.3]}
13. Qg3 {[%clk 0:02:07.9]} 13... Bb7 {[%clk 0:02:49.7]} 14. Nh4 {[%clk
0:02:03.8]} 14... Qc3 {[%clk 0:02:35.3]} 15. Ndf3 {[%clk 0:01:43]} 15... Qxc2
{[%clk 0:02:28.5]} 16. Rf2 {[%clk 0:01:41.6]} 16... Qc3 {[%clk 0:02:00.6]} 17.
Raf1 {[%clk 0:01:39.3]} 17... Nd4 {[%clk 0:01:44.8]} 18. Nxd4 {[%clk 0:01:36.5]}
18... Qxd4 {[%clk 0:01:41.1]} 19. f5 {[%clk 0:01:35]} 19... Kh8 {[%clk
0:01:13.5]} 20. Nf3 {[%clk 0:01:24.5]} 20... Qc3 {[%clk 0:00:54.9]} 21. Ng5
{[%clk 0:01:20.5]} 21... exf5 {[%clk 0:00:39.8]} 22. Rxf5 {[%clk 0:01:20.2]}
22... f6 {[%clk 0:00:34.7]} 23. Ne6 {[%clk 0:01:09.3]} 23... Rf7 {[%clk
0:00:27.2]} 24. Qh3 {[%clk 0:00:55.3]} 24... Ne5 {[%clk 0:00:23.8]} 25. Bh5
{[%clk 0:00:37]} 25... Re7 {[%clk 0:00:22.3]} 26. Nf4 {[%clk 0:00:28]} 26... Kg8
{[%clk 0:00:16.5]} 27. Qg3 {[%clk 0:00:25.4]} 27... Rf8 {[%clk 0:00:13.2]} 28.
Be2 {[%clk 0:00:22.3]} 28... Qd2 {[%clk 0:00:09.9]} 29. h4 {[%clk 0:00:19.7]}
29... c4 {[%clk 0:00:09.3]} 30. bxc4 {[%clk 0:00:19]} 30... bxc4 {[%clk
0:00:09.5]} 31. Nh5 {[%clk 0:00:15.3]} 31... Qh6 {[%clk 0:00:06.4]} 32. Nxf6+
{[%clk 0:00:14.5]} 32... Kh8 {[%clk 0:00:05.1]} 33. Ng4 {[%clk 0:00:13.6]} 33...
Rxf5 {[%clk 0:00:03.9]} 34. Nxh6 {[%clk 0:00:12.7]} 34... Rxf1+ {[%clk
0:00:04.5]} 35. Kxf1 {[%clk 0:00:12.9]} 35... gxh6 {[%clk 0:00:05]} 36. Qf4
{[%clk 0:00:11.4]} 36... Rf7 {[%clk 0:00:04.7]} 37. Qxf7 {[%clk 0:00:10.7]}
37... Nxf7 {[%clk 0:00:05.6]} 38. dxc4 {[%clk 0:00:11.1]} 38... Bxe4 {[%clk
0:00:06]} 39. c5 {[%clk 0:00:10.3]} 39... dxc5 {[%clk 0:00:06.1]} 40. Bxa6
{[%clk 0:00:10.8]} 40... Nd6 {[%clk 0:00:06.1]} 41. Be2 {[%clk 0:00:09]} 41...
c4 {[%clk 0:00:05.6]} 42. a4 {[%clk 0:00:09.2]} 42... Kg7 {[%clk 0:00:04.9]} 43.
a5 {[%clk 0:00:09]} 43... Bb7 {[%clk 0:00:05.3]} 44. Ke1 {[%clk 0:00:08]} 44...
Kf6 {[%clk 0:00:05.9]} 45. Kd2 {[%clk 0:00:08.5]} 45... Ke5 {[%clk 0:00:06.4]}
46. Kc3 {[%clk 0:00:09.2]} 46... Ba6 {[%clk 0:00:05.5]} 47. g4 {[%clk
0:00:09.7]} 47... Kd5 {[%clk 0:00:04.9]} 48. g5 {[%clk 0:00:09.9]} 48... hxg5
{[%clk 0:00:04.1]} 49. hxg5 {[%clk 0:00:09.9]} 49... Kc5 {[%clk 0:00:02.8]} 50.
Bh5 {[%clk 0:00:09.3]} 50... Ne4+ {[%clk 0:00:02.7]} 51. Kc2 {[%clk 0:00:08.3]}
51... Nxg5 {[%clk 0:00:03]} 52. Be8 {[%clk 0:00:07.6]} 52... Ne4 {[%clk
0:00:02.4]} 53. Bd7 {[%clk 0:00:07.6]} 53... Nd6 {[%clk 0:00:02.2]} 54. Bg4
{[%clk 0:00:07.8]} 54... Nb5 {[%clk 0:00:01.4]} 55. Bd1 {[%clk 0:00:07.6]} 55...
Kd4 {[%clk 0:00:01.3]} 56. Kb2 {[%clk 0:00:08.4]} 1-0

[Event "Late-Titled-Tuesday-Blitz-February-20-2024"]
[Site "Chess.com"]
[Date "2024.02.20"]
[Round "4"]
[White "ExchangeAB"]
[Black "GolfBeforeChess"]
[Result "1/2-1/2"]
[WhiteElo "2450"]
[BlackElo "2292"]
[TimeControl "180+1"]
[EndTime "14:39:42 PST"]
[Termination "Game drawn - insufficient material"]

1. d4 {[%clk 0:03:00.9]} 1... Nf6 {[%clk 0:03:00]} 2. Nf3 {[%clk 0:03:01.2]}
2... c5 {[%clk 0:02:59.6]} 3. c3 {[%clk 0:03:01.3]} 3... b6 {[%clk 0:02:59.9]}
4. e3 {[%clk 0:02:59.4]} 4... Bb7 {[%clk 0:03:00.5]} 5. Nbd2 {[%clk 0:03:00]}
5... g6 {[%clk 0:03:01]} 6. Bd3 {[%clk 0:03:00.1]} 6... Bg7 {[%clk 0:03:01.6]}
7. O-O {[%clk 0:03:00.7]} 7... O-O {[%clk 0:03:01.6]} 8. e4 {[%clk 0:03:01.4]}
8... d6 {[%clk 0:03:01.9]} 9. Qe2 {[%clk 0:03:01.1]} 9... Nbd7 {[%clk
0:03:01.6]} 10. Rd1 {[%clk 0:02:58]} 10... cxd4 {[%clk 0:03:01.1]} 11. cxd4
{[%clk 0:02:58.1]} 11... Rc8 {[%clk 0:03:01.5]} 12. Nf1 {[%clk 0:02:57.9]} 12...
Qc7 {[%clk 0:02:57.4]} 13. h3 {[%clk 0:02:55]} 13... e5 {[%clk 0:02:57.5]} 14.
dxe5 {[%clk 0:02:53.5]} 14... dxe5 {[%clk 0:02:57.3]} 15. Bg5 {[%clk 0:02:49.9]}
15... Nc5 {[%clk 0:02:56]} 16. Rac1 {[%clk 0:02:45.5]} 16... Qb8 {[%clk
0:02:56]} 17. Bxf6 {[%clk 0:02:44.2]} 17... Bxf6 {[%clk 0:02:55.2]} 18. Bc2
{[%clk 0:02:42.2]} 18... Ne6 {[%clk 0:02:54.4]} 19. Ne3 {[%clk 0:02:40.4]} 19...
Nd4 {[%clk 0:02:51.1]} 20. Nxd4 {[%clk 0:02:39.9]} 20... exd4 {[%clk 0:02:50.9]}
21. Nd5 {[%clk 0:02:39.8]} 21... Bxd5 {[%clk 0:02:44.9]} 22. exd5 {[%clk
0:02:40.7]} 22... Rfe8 {[%clk 0:02:44]} 23. Qf3 {[%clk 0:02:38.8]} 23... Qd6
{[%clk 0:02:38]} 24. Ba4 {[%clk 0:02:33.8]} 24... Re5 {[%clk 0:02:36.2]} 25. Bc6
{[%clk 0:02:31.1]} 25... Rc7 {[%clk 0:02:30.5]} 26. g3 {[%clk 0:02:11]} 26...
Rf5 {[%clk 0:02:24.9]} 27. Qd3 {[%clk 0:02:05]} 27... Re7 {[%clk 0:02:23]} 28.
Re1 {[%clk 0:02:04.1]} 28... Rfe5 {[%clk 0:02:17.5]} 29. Rxe5 {[%clk 0:02:02.7]}
29... Rxe5 {[%clk 0:02:10.1]} 30. Kg2 {[%clk 0:02:01.4]} 30... Re7 {[%clk
0:02:07]} 31. h4 {[%clk 0:01:57.4]} 31... h5 {[%clk 0:02:07.1]} 32. a3 {[%clk
0:01:56.1]} 32... Kg7 {[%clk 0:02:07]} 33. b4 {[%clk 0:01:55.8]} 33... Be5
{[%clk 0:01:57.8]} 34. Qf3 {[%clk 0:01:54.1]} 34... Qf6 {[%clk 0:01:57]} 35. Qd3
{[%clk 0:01:43.3]} 35... Qd6 {[%clk 0:01:50.3]} 36. Re1 {[%clk 0:01:40.6]} 36...
Bf6 {[%clk 0:01:48.7]} 37. Rb1 {[%clk 0:01:31.6]} 37... Be5 {[%clk 0:01:39.9]}
38. a4 {[%clk 0:01:31.2]} 38... Bf6 {[%clk 0:01:37.4]} 39. a5 {[%clk 0:01:30.7]}
39... bxa5 {[%clk 0:01:30.9]} 40. bxa5 {[%clk 0:01:31.6]} 40... Qc5 {[%clk
0:01:31.1]} 41. a6 {[%clk 0:01:30.8]} 41... Qc3 {[%clk 0:01:30.7]} 42. Rb3
{[%clk 0:01:10.5]} 42... Qe1 {[%clk 0:01:26.3]} 43. d6 {[%clk 0:01:00.7]} 43...
Re2 {[%clk 0:01:20.1]} 44. Qf3 {[%clk 0:01:00.2]} 44... Rc2 {[%clk 0:01:10.8]}
45. d7 {[%clk 0:00:37.2]} 45... Rc1 {[%clk 0:01:09.1]} 46. Kh3 {[%clk
0:00:37.8]} 46... Qf1+ {[%clk 0:01:01.6]} 47. Qg2 {[%clk 0:00:37.7]} 47... Qxg2+
{[%clk 0:00:59.6]} 48. Bxg2 {[%clk 0:00:36.7]} 48... Rc7 {[%clk 0:00:58.5]} 49.
Rb7 {[%clk 0:00:34.4]} 49... Bd8 {[%clk 0:00:58.5]} 50. Be4 {[%clk 0:00:28]}
50... Kf6 {[%clk 0:00:57.3]} 51. Bd3 {[%clk 0:00:26]} 51... Ke7 {[%clk
0:00:57.1]} 52. Bb5 {[%clk 0:00:25]} 52... Kd6 {[%clk 0:00:55.5]} 53. Kg2 {[%clk
0:00:24.5]} 53... Kc5 {[%clk 0:00:50]} 54. Bd3 {[%clk 0:00:22.8]} 54... Kd6
{[%clk 0:00:49]} 55. Rxc7 {[%clk 0:00:20.2]} 55... Kxc7 {[%clk 0:00:48.7]} 56.
Bc4 {[%clk 0:00:20.4]} 56... f6 {[%clk 0:00:41.9]} 57. Bf7 {[%clk 0:00:20.1]}
57... g5 {[%clk 0:00:40.9]} 58. hxg5 {[%clk 0:00:17.3]} 58... fxg5 {[%clk
0:00:40.9]} 59. Bxh5 {[%clk 0:00:17]} 59... Kxd7 {[%clk 0:00:40.9]} 60. Kf3
{[%clk 0:00:17.5]} 60... Kd6 {[%clk 0:00:40.7]} 61. Ke4 {[%clk 0:00:17.8]} 61...
Kc5 {[%clk 0:00:40.9]} 62. Be2 {[%clk 0:00:17.4]} 62... Be7 {[%clk 0:00:39.6]}
63. Kf5 {[%clk 0:00:16.7]} 63... Bd8 {[%clk 0:00:39.3]} 64. Ke4 {[%clk
0:00:16.6]} 64... Be7 {[%clk 0:00:38.7]} 65. f4 {[%clk 0:00:16.5]} 65... gxf4
{[%clk 0:00:38.4]} 66. gxf4 {[%clk 0:00:17.4]} 66... Bd8 {[%clk 0:00:37.8]} 67.
Ke5 {[%clk 0:00:17.9]} 67... Bc7+ {[%clk 0:00:34.6]} 68. Ke4 {[%clk 0:00:18.2]}
68... Bd8 {[%clk 0:00:34.5]} 69. f5 {[%clk 0:00:18.8]} 69... Bf6 {[%clk
0:00:34.4]} 70. Bd3 {[%clk 0:00:18.6]} 70... Kb4 {[%clk 0:00:33.7]} 71. Kd5
{[%clk 0:00:12.8]} 71... Kc3 {[%clk 0:00:33.8]} 72. Be2 {[%clk 0:00:12.8]} 72...
d3 {[%clk 0:00:33.9]} 73. Bg4 {[%clk 0:00:12.5]} 73... d2 {[%clk 0:00:33.4]} 74.
Kc6 {[%clk 0:00:13]} 74... Kc2 {[%clk 0:00:33.6]} 75. Kb7 {[%clk 0:00:13.2]}
75... Bd4 {[%clk 0:00:32.9]} 76. f6 {[%clk 0:00:13.1]} 76... Bxf6 {[%clk
0:00:32.8]} 77. Kxa7 {[%clk 0:00:13.5]} 77... Bd4+ {[%clk 0:00:32.8]} 78. Kb7
{[%clk 0:00:14]} 78... d1=Q {[%clk 0:00:31.6]} 79. Bxd1+ {[%clk 0:00:14.2]}
79... Kxd1 {[%clk 0:00:31.9]} 80. Kb8 {[%clk 0:00:14.7]} 80... Kc2 {[%clk
0:00:31.3]} 81. Kc7 {[%clk 0:00:15.3]} 81... Kb3 {[%clk 0:00:31.3]} 82. Kb7
{[%clk 0:00:16.2]} 82... Ka4 {[%clk 0:00:31.1]} 83. a7 {[%clk 0:00:17.1]} 83...
Bxa7 {[%clk 0:00:30]} 1/2-1/2